bitfinex-derivatives/quotes_ETHF0:USTF0_20251103
["timestamp","ask_amount","ask_price","bid_price","bid_amount"]
[1762195996400,0.49439,3641.5,3641.4,0.3675]
[1762195997298,0.49439,3641.5,3641.4,0.2888]
[1762195998197,0.49439,3641.5,3641.1,3.2078]
[1762195998198,0.49442,3641.2,3641.1,3.2078]
[1762195998899,1.23587,3641.8,3641.2,0.49442]
[1762195999101,0.49441,3641.3,3641.2,0.2569]
[1762195999305,0.49441,3641.3,3641.1,3.2078]
[1762195999306,0.00338484,3641.9,3641.4,0.58229]
[1762195999504,0.00338484,3641.9,3641.4,0.0879]
[1762195999805,0.4944,3641.4,3641.3,0.4944]
[1762196000208,0.49442,3641.2,3641.1,3.95912]
[1762196000703,0.49442,3641.2,3641.1,3.4647]
[1762196001001,0.49446,3641.0,3640.9,0.75136]
[1762196001801,0.49446,3641.0,3640.9,0.2569]
[1762196002096,0.49447,3640.8,3640.7,10.24839]
[1762196002301,0.49447,3640.8,3640.7,9.497]
[1762196002507,0.4945,3640.6,3640.5,3.21076035]
[1762196002701,0.7461,3640.6,3640.5,0.00296035]
[1762196002902,0.4945,3640.6,3640.5,0.00296035]
[1762196003103,1.46549512,3642.8,3640.5,0.00296035]
[1762196003104,3.2078,3641.3,3640.8,0.75137]
[1762196003305,0.49446,3640.9,3640.8,0.2569]
[1762196004108,0.49446,3640.9,3640.8,0.75137]
[1762196004303,0.49446,3640.9,3640.8,0.2569]
[1762196005705,0.49445,3641.0,3640.9,0.2569]
[1762196005906,0.49443,3641.1,3641.0,0.75135]
[1762196006107,0.49443,3641.1,3641.0,0.2569]
[1762196008402,0.49442,3641.2,3641.1,0.2569]
[1762196008609,3.70221,3641.3,3641.1,0.75133]
[1762196008910,3.2078,3641.7,3641.6,0.2553]
[1762196009212,3.70215,3641.7,3641.6,0.2553]
[1762196010518,0.49439,3641.4,3641.3,0.7497]
[1762196012014,3.2078,3641.7,3641.5,0.49437]
[1762196012221,0.49439,3641.5,3641.4,0.74969]
[1762196013119,0.49439,3641.5,3641.4,0.2553]
[1762196015225,0.49447,3640.9,3640.8,0.49447]
[1762196015424,0.49444,3641.1,3641.0,0.2553]
[1762196015626,0.49444,3641.1,3641.0,0.74975]
[1762196016023,0.49444,3641.1,3641.0,0.2553]
[1762196018231,3.70222,3641.3,3641.2,0.74972]
[1762196018728,0.49436,3641.7,3641.6,0.2553]
[1762196018927,0.49434,3641.8,3641.6,0.2553]
[1762196019121,0.49434,3641.8,3641.7,0.2553]
[1762196019620,0.49434,3641.8,3641.7,0.74965]
[1762196023332,0.49441,3641.3,3641.2,0.2553]
[1762196023832,0.49442,3641.2,3641.1,3.95753]
[1762196024033,0.4944,3641.4,3641.3,0.74969]
[1762196024526,0.4944,3641.4,3641.3,0.2553]
[1762196025232,0.49442,3641.2,3641.1,13.0698]
[1762196025434,0.49442,3641.2,3641.1,13.3045]
[1762196025732,0.49442,3641.2,3641.1,13.79893]
[1762196026026,0.49441,3641.3,3641.2,0.2347]
[1762196027332,0.49441,3641.3,3641.2,0.72912]
[1762196028428,0.73852,3641.2,3641.1,3.2078]
[1762196028622,0.73852,3641.2,3641.1,9.861]
[1762196029523,0.49446,3640.9,3640.8,0.72916]
[1762196031736,0.7386,3640.6,3640.5,0.00296035]
[1762196032031,0.7386,3640.6,3640.5,0.23766035]
[1762196032237,0.7386,3640.6,3640.5,0.00296035]
[1762196033231,3.9464,3640.6,3640.5,0.00296035]
[1762196036743,0.73871,3639.8,3639.7,0.24557113]
[1762196036946,0.73871,3639.8,3639.7,0.02747517]
[1762196037742,0.73871,3639.8,3639.7,0.52555435]
[1762196037933,0.73871,3639.8,3639.7,0.03093435]
[1762196040144,0.73883,3638.9,3638.8,3.2078]
[1762196040440,3.2078,3639.4,3638.8,3.65700738]
[1762196040641,12.49569,3641.0,3638.8,3.65700738]
[1762196040642,4.44418,3640.3,3639.2,3.2078]
[1762196040836,0.49461,3639.8,3639.7,0.72932]
[1762196041345,0.74111626,3639.8,3639.7,0.23753753]
[1762196041643,0.74111626,3639.8,3639.7,0.00283753]
[1762196042036,0.49701626,3639.8,3639.7,0.73215753]
[1762196042242,0.00240626,3639.8,3639.7,3.93995753]
[1762196042747,0.49448,3640.8,3640.0,1.38526]
[1762196042948,0.49451,3640.6,3640.4,0.49452]
[1762196043151,0.49451,3640.5,3640.4,0.2347]
[1762196043350,0.1342,3640.5,3639.9,0.49458]
[1762196043545,3.70234,3640.3,3640.2,0.49456]
[1762196043749,3.94890021,3640.3,3640.2,0.49456]
[1762196044048,0.4946,3639.9,3639.8,3.2078]
[1762196044251,3.21026021,3640.3,3639.9,0.2347]
[1762196044550,3.21026021,3640.3,3640.1,0.49456]
[1762196044748,0.49457,3640.1,3640.0,0.2347]
[1762196044950,0.7387,3639.9,3639.8,3.2078]
[1762196045251,0.4946,3639.9,3639.8,3.2078]
[1762196045453,0.4946,3639.9,3639.8,0.49461]
[1762196045949,0.1342,3640.0,3639.7,0.23753753]
[1762196045950,0.49461,3639.8,3639.7,0.23753753]
[1762196046251,0.73871,3639.8,3639.7,0.49745753]
[1762196046750,0.1342,3640.0,3639.9,0.4946]
[1762196046949,0.62878,3640.0,3639.9,0.4946]
[1762196047146,0.62878,3640.0,3639.7,0.00283753]
[1762196047147,0.49461,3639.8,3639.7,0.49745753]
[1762196047544,0.4946,3639.9,3639.8,0.72931]
[1762196048551,0.7387,3639.9,3639.8,0.49461]
[1762196048750,0.62878,3640.0,3639.9,0.4946]
[1762196048950,0.00246021,3640.3,3640.2,0.72926]
[1762196050348,0.49700021,3640.3,3640.2,0.2347]
[1762196050555,0.00246021,3640.3,3640.2,0.72926]
[1762196051847,0.74110021,3640.3,3640.2,0.49456]
[1762196052042,0.24656021,3640.3,3640.2,0.49456]
[1762196052548,0.24656021,3640.3,3640.0,10.0058]
[1762196052754,0.74111021,3640.3,3640.2,0.49456]
[1762196052946,0.00246021,3640.3,3640.2,0.72926]
[1762196053655,0.00246021,3640.3,3640.2,0.2347]
[1762196053656,0.49700021,3640.3,3640.2,0.2347]
[1762196053956,0.00246021,3640.3,3640.2,0.72926]
[1762196054451,0.24656021,3640.3,3640.2,0.49456]
[1762196054654,0.74110021,3640.3,3640.2,0.49456]
[1762196055849,0.3825,3640.0,3639.9,0.4946]
[1762196056055,0.4946,3639.9,3639.7,10.10133753]
[1762196056256,0.4946,3639.9,3639.8,0.49461]
[1762196056454,0.4946,3639.9,3639.8,0.73811]
[1762196057159,0.4946,3639.9,3639.8,0.2435]
[1762196057357,0.73931,3639.8,3639.7,0.00283753]
[1762196057759,0.2447,3638.7,3638.6,1.96417655]
[1762196057955,0.2447,3638.7,3637.9,0.49486]
[1762196057956,0.2447,3638.1,3637.9,0.49486]
[1762196058261,0.1378,3638.5,3638.1,0.49483]
[1762196058463,0.1378,3638.5,3637.8,3.2078]
[1762196058760,0.1378,3638.5,3637.8,3.21075937]
[1762196058955,0.1378,3638.5,3637.9,0.49487]
[1762196059362,0.1378,3638.5,3637.8,3.21075937]
[1762196059556,3.2078,3638.2,3637.8,0.49783937]
[1762196059863,0.2447,3638.1,3638.0,0.49485]
[1762196060357,3.2078,3638.2,3638.1,0.2435]
[1762196060562,3.2078,3638.2,3637.8,0.00295937]
[1762196060758,0.2447,3638.1,3638.0,0.49485]
[1762196061860,0.2447,3638.1,3637.8,0.49782937]
[1762196062056,3.2078,3638.2,3637.8,0.49782937]
[1762196062057,0.2447,3637.9,3637.8,0.00295937]
[1762196066371,0.73957,3637.9,3637.8,0.00055311]
[1762196066966,7.61157,3637.9,3637.8,0.00055311]
[1762196067165,0.73968,3637.1,3637.0,3.2078]
[1762196067366,0.49505,3636.6,3636.5,3.589]
[1762196067675,0.72695,3636.6,3636.5,3.2078]
[1762196068169,0.72695,3636.6,3636.5,3.21017198]
[1762196068170,0.72968577,3636.6,3636.5,3.21017198]
[1762196068371,0.23463577,3636.6,3636.5,3.21017198]
[1762196068578,0.00273577,3636.6,3636.5,3.43587198]
[1762196068968,0.00273577,3636.6,3636.5,0.22807198]
[1762196069674,0.00273577,3636.6,3636.5,0.00237198]
[1762196069877,0.23463577,3636.6,3636.5,0.00237198]
[1762196070177,0.3697,3637.5,3637.3,0.49494]
[1762196070375,0.86463,3637.5,3637.3,0.49494]
[1762196070679,0.2319,3637.4,3637.3,0.49494]
[1762196071077,0.72928226,3637.4,3637.3,0.49494]
[1762196071380,0.72928226,3637.4,3636.9,3.2078]
[1762196071381,0.49495,3637.3,3636.9,3.2078]
[1762196071580,0.23434226,3637.4,3637.3,0.49495]
[1762196071780,0.23434226,3637.4,3637.1,0.49496]
[1762196072075,0.23434226,3637.4,3636.9,3.2078]
[1762196072275,0.00244226,3637.4,3637.3,0.72065]
[1762196072781,0.00244226,3637.4,3637.3,3.92845]
[1762196075575,0.00244226,3637.4,3637.3,3.4335]
[1762196075779,0.00244226,3637.4,3637.3,3.92845]
[1762196077378,0.49738226,3637.4,3637.3,3.92845]
[1762196077881,0.00244226,3637.4,3637.3,3.92845]
[1762196081290,0.00244226,3637.4,3637.3,0.72065]
[1762196082576,0.00244226,3637.4,3637.3,3.92845]
[1762196083883,0.23434226,3637.4,3637.3,3.2078]
[1762196084082,0.23434226,3637.4,3637.3,3.70275]
[1762196084293,0.23434226,3637.4,3637.3,3.92845]
[1762196084792,0.00244226,3637.4,3637.3,3.92845]
[1762196086285,0.00244226,3637.4,3637.3,3.70275]
[1762196086489,0.00244226,3637.4,3637.3,3.93925]
[1762196087786,3.2078,3638.2,3638.1,0.73134]
[1762196087993,0.49481,3638.4,3638.3,0.4948]
[1762196088194,0.49481,3638.4,3638.3,0.2365]
[1762196088689,0.49484,3638.1,3637.7,3.2078]
[1762196088896,0.49487,3637.9,3637.8,0.49488]
[1762196089390,0.49484,3638.2,3637.7,3.2078]
[1762196089593,1.23948133,3638.4,3637.8,0.73138]
[1762196089793,0.49487,3638.0,3637.9,0.49487]
[1762196090288,0.00246133,3638.4,3637.8,1.23721]
[1762196090490,0.49487,3637.9,3637.7,3.70269]
[1762196090693,0.49485,3638.1,3638.0,0.49485]
[1762196090889,0.49485,3638.1,3638.0,0.73135]
[1762196091891,0.49481,3638.3,3638.2,0.49483]
[1762196092293,0.00246133,3638.4,3638.3,0.73131]
[1762196093694,0.00246133,3638.4,3638.3,0.95164314]
[1762196094293,0.49726133,3638.4,3638.3,0.95164314]
[1762196094696,0.00246133,3638.4,3638.3,0.95164314]
[1762196095893,0.49726133,3638.4,3638.3,0.95164314]
[1762196096999,0.00246133,3638.4,3638.3,0.95164314]
[1762196097389,1.23949133,3638.4,3637.7,3.70269]
[1762196097597,0.49487,3637.9,3637.8,10.0825]
[1762196097798,0.49487,3637.9,3637.8,10.57738]
[1762196098000,0.49487,3637.9,3637.8,10.0825]
[1762196098205,0.49484,3638.1,3638.0,0.73134]
[1762196098403,0.49483,3638.2,3638.1,0.73134]
[1762196098700,0.49726133,3638.4,3638.3,0.2365]
[1762196099703,0.00246133,3638.4,3638.3,0.73131]
[1762196100205,0.00246133,3638.4,3638.1,0.2365]
[1762196100505,0.49726133,3638.4,3638.3,0.2365]
[1762196100703,0.49726133,3638.4,3638.3,0.73131]
[1762196101894,0.00246133,3638.4,3638.3,0.73131]
[1762196102093,3.2078,3639.4,3639.3,0.73118]
[1762196102495,3.2078,3639.4,3638.6,5.17197655]
[1762196102696,0.49469,3639.3,3638.9,0.49473]
[1762196102896,0.49471,3639.1,3639.0,0.2365]
[1762196103105,0.49725472,3639.1,3639.0,0.81420601]
[1762196103404,0.49725472,3639.1,3639.0,0.73400601]
[1762196103701,0.00254472,3639.1,3639.0,0.81420601]
[1762196103905,0.00254472,3639.1,3639.0,4.02200601]
[1762196104203,0.49725472,3639.1,3639.0,0.23928601]
[1762196104403,0.73845472,3639.1,3639.0,0.30835612]
[1762196105601,0.73845472,3639.1,3639.0,0.07185612]
[1762196107805,0.49479,3638.5,3638.4,0.7313]
[1762196108307,0.49479,3638.5,3638.4,0.2365]
[1762196108706,0.87449,3638.5,3638.4,0.00300336]
[1762196110711,0.87449,3638.5,3638.4,0.49780336]
[1762196110910,3.3463,3639.0,3638.4,0.00300336]
[1762196111209,0.49476,3638.8,3638.7,0.73125]
[1762196112306,0.49476,3638.8,3638.7,0.2365]
[1762196112605,0.49478,3638.6,3638.5,0.73129]
[1762196112912,0.49476,3638.8,3638.7,0.49476]
[1762196113505,0.49476,3638.8,3638.7,0.73126]
[1762196114006,0.49476,3638.7,3638.6,0.49477]
[1762196114408,0.49476,3638.7,3638.6,0.73127]
[1762196114614,0.71679,3638.5,3638.4,0.00300336]
[1762196114807,0.85639,3638.5,3638.4,0.00300336]
[1762196117715,0.222,3637.6,3637.5,3.2078]
[1762196117917,0.222,3637.6,3637.5,3.70272]
[1762196118313,0.71691,3637.6,3637.5,3.70272]
[1762196118513,0.71691,3637.6,3637.5,3.2078]
[1762196118716,0.85653,3637.5,3637.4,0.49494]
[1762196118915,0.85653,3637.5,3637.4,0.49828076]
[1762196119309,4.58456,3638.0,3637.4,0.49828076]
[1762196119310,3.3474,3638.0,3637.8,0.49488]
[1762196119508,3.3474,3638.0,3637.9,0.49487]
[1762196119717,0.49488,3637.9,3637.7,0.49488]
[1762196119909,0.49488,3637.8,3637.7,0.73258]
[1762196120411,3.3474,3638.0,3637.4,0.00334076]
[1762196120412,0.85652,3637.5,3637.4,0.00334076]
[1762196121413,0.222,3636.7,3636.3,5.21983081]
[1762196121610,0.222,3636.7,3636.3,3.25565426]
[1762196121812,0.1396,3637.0,3636.6,0.2377]
[1762196122310,0.1396,3637.0,3636.6,0.23978904]
[1762196122514,0.222,3636.7,3636.6,0.00208904]
[1762196122717,0.222,3636.7,3636.6,0.49713904]
[1762196122914,0.222,3636.7,3636.6,0.00208904]
[1762196123312,3.4298,3636.7,3636.6,0.00208904]
[1762196125822,0.222,3635.6,3635.5,3.4223802]
[1762196126116,0.222,3635.6,3635.5,0.2145802]
[1762196126310,0.222,3635.6,3635.0,13.1762]
[1762196126511,0.222,3635.6,3635.0,13.67146]
[1762196126512,0.1396,3635.5,3635.0,13.67146]
[1762196126715,0.14227711,3635.5,3635.0,3.84036567]
[1762196127021,0.14227711,3635.5,3635.2,0.49523]
[1762196127420,3.2078,3635.4,3635.0,0.35162285]
[1762196127621,3.2078,3635.4,3635.0,0.21722285]
[1762196127822,0.233,3635.1,3635.0,0.21722285]
[1762196128022,0.233,3635.1,3635.0,0.45162285]
[1762196128328,0.233,3635.1,3635.0,0.21722285]
[1762196128526,0.49523,3635.3,3635.2,0.2344]
[1762196129023,3.2078,3635.4,3635.2,0.72963]
[1762196129914,3.70301,3635.4,3635.2,0.2344]
[1762196130119,3.70301,3635.4,3635.2,0.72963]
[1762196130319,0.49524,3635.2,3635.0,0.49816567]
[1762196130525,3.70302,3635.4,3635.2,0.49523]
[1762196130726,3.2078,3635.4,3635.3,0.2344]
[1762196131322,3.2078,3635.4,3635.0,0.49816567]
[1762196131517,0.49524,3635.2,3635.0,0.00290567]
[1762196131724,0.233,3635.1,3635.0,0.00290567]
[1762196132423,3.2078,3635.4,3635.0,0.73256567]
[1762196132616,0.49524,3635.2,3635.0,0.73256567]
[1762196133119,0.233,3635.1,3635.0,0.00290567]
[1762196133529,0.233,3635.1,3635.0,0.23730567]
[1762196133829,0.49524,3635.2,3635.0,0.23730567]
[1762196134120,3.2078,3635.4,3635.0,0.23730567]
[1762196134121,3.2078,3635.4,3635.3,0.72962]
[1762196134322,0.00267711,3635.5,3635.0,0.05077774]
[1762196134323,0.13557711,3635.5,3635.0,0.05077774]
[1762196134529,0.233,3635.1,3635.0,0.00290567]
[1762196136631,0.233,3635.1,3635.0,0.49816567]
[1762196136823,3.2078,3635.4,3635.0,0.14160567]
[1762196137128,3.70301,3635.4,3635.3,0.49522]
[1762196137322,0.72822,3635.3,3635.1,0.49524]
[1762196137629,0.233,3635.2,3635.1,0.49524]
[1762196138130,0.49521,3635.4,3635.2,0.49523]
[1762196138318,0.13557711,3635.5,3635.0,0.49816567]
[1762196138629,0.233,3635.2,3635.0,0.00290567]
[1762196138817,0.233,3635.2,3635.1,0.49525]
[1762196139831,0.233,3635.4,3635.3,0.49521]
[1762196140424,0.72821,3635.4,3635.3,0.49521]
[1762196141233,0.233,3635.4,3635.3,0.72961]
[1762196141531,0.72821,3635.4,3635.3,0.72961]
[1762196141831,0.00267711,3635.5,3635.4,0.72961]
[1762196142026,0.49521,3635.4,3635.0,0.14160567]
[1762196142531,0.233,3635.4,3635.3,0.49522]
[1762196142932,0.72821,3635.4,3635.3,0.49522]
[1762196143331,0.233,3635.4,3635.3,0.49522]
[1762196143633,0.63077711,3635.5,3635.4,0.49521]
[1762196143825,0.86377711,3635.5,3635.4,0.49521]
[1762196144030,0.13557711,3635.5,3635.2,0.2344]
[1762196144229,0.72822,3635.4,3635.3,0.49521]
[1762196144530,0.233,3635.4,3635.3,0.49521]
[1762196144735,0.233,3635.4,3635.0,1.37976567]
[1762196144736,0.00267711,3635.5,3635.4,0.73351]
[1762196145036,0.1445,3638.0,3635.4,0.73351]
[1762196145037,0.49511,3636.1,3636.0,0.3727]
[1762196145335,0.4951,3636.2,3636.0,0.73343]
[1762196145534,3.2078,3636.3,3636.0,0.73343]
[1762196145535,0.49511,3636.1,3636.0,0.73343]
[1762196145736,0.49511,3636.1,3636.0,0.2383]
[1762196145737,0.73431,3636.1,3636.0,0.2383]
[1762196145938,0.87883,3636.0,3635.9,0.49514]
[1762196146229,0.3837,3636.0,3635.9,0.49514]
[1762196146424,0.49515,3635.9,3635.5,0.1389]
[1762196146632,0.73435,3635.9,3635.8,0.49516]
[1762196146931,0.2392,3635.9,3635.8,0.73346]
[1762196147232,0.2392,3635.9,3635.3,3.2078]
[1762196147425,0.1445,3635.5,3635.3,3.70302]
[1762196147629,0.3837,3635.5,3635.4,0.49521]
[1762196147931,0.3837,3635.5,3635.3,3.2078]
[1762196147932,0.49521,3635.4,3635.3,3.2078]
[1762196148130,0.73441,3635.4,3635.3,3.70302]
[1762196148526,0.73441,3635.4,3635.3,3.2078]
[1762196148833,0.1445,3635.5,3635.2,9.831]
[1762196148834,0.73442,3635.3,3635.2,10.32624]
[1762196149233,0.73442,3635.3,3635.2,9.831]
[1762196149434,0.73442,3635.3,3635.0,0.00290567]
[1762196149435,3.2078,3635.3,3635.0,0.00290567]
[1762196149630,3.94222,3635.3,3635.2,0.49524]
[1762196150037,0.49524,3635.2,3635.1,0.49525]
[1762196150227,0.73444,3635.2,3635.1,0.49525]
[1762196150740,3.2078,3635.3,3635.2,0.73354]
[1762196151136,3.447,3635.3,3635.2,0.49524]
[1762196151332,0.2392,3635.2,3635.1,0.73355]
[1762196151729,0.2392,3635.1,3635.0,0.73646567]
[1762196151936,3.70302,3635.3,3635.2,0.73354]
[1762196152439,3.2078,3635.3,3635.2,0.2383]
[1762196152739,0.2392,3635.4,3635.3,0.49521]
[1762196153638,0.73441,3635.4,3635.0,0.12880567]
[1762196153836,0.2392,3635.3,3635.0,0.00290567]
[1762196154032,0.2392,3635.1,3635.0,0.00290567]
[1762196154641,0.73445,3635.1,3635.0,0.73646567]
[1762196154936,0.73445,3635.1,3635.0,0.24120567]
[1762196155138,0.73445,3635.1,3635.0,0.73646567]
[1762196155341,0.73445,3635.1,3635.0,0.24120567]
[1762196156541,0.73445,3635.1,3635.0,0.73646567]
[1762196156740,0.73445,3635.1,3635.0,0.00290567]
[1762196157338,0.73445,3635.1,3635.0,0.49816567]
[1762196157643,0.73445,3635.1,3635.0,0.00290567]
[1762196158540,0.73445,3635.1,3635.0,0.49816567]
[1762196159040,0.73445,3635.1,3635.0,0.00290567]
[1762196159846,0.73445,3635.1,3635.0,0.49816567]
[1762196160045,0.73445,3635.1,3635.0,0.00290567]
[1762196160642,0.73445,3635.1,3635.0,0.49816567]
[1762196161250,0.73445,3635.1,3635.0,0.00290567]
[1762196161743,0.73445,3635.1,3635.0,0.49816567]
[1762196161943,0.73445,3635.1,3635.0,0.00290567]
[1762196162646,0.73449,3634.8,3634.7,0.02751297]
[1762196162844,0.2392,3633.6,3633.5,0.49177655]
[1762196163039,0.2392,3633.6,3633.0,0.1401]
[1762196163040,0.49552,3633.1,3633.0,0.1401]
[1762196163244,3.70332,3633.1,3633.0,0.1401]
[1762196163441,1.23888,3632.9,3631.5,0.1401]
[1762196163649,3.2078,3632.1,3632.0,0.14284872]
[1762196163850,3.50030527,3632.1,3632.0,0.14284872]
[1762196164152,3.50030527,3632.1,3632.0,0.87681872]
[1762196164153,3.2078,3632.1,3632.0,0.87681872]
[1762196164349,3.2078,3632.1,3632.0,0.38114872]
[1762196164854,0.49563,3632.4,3632.0,0.38114872]
[1762196165058,3.2078,3632.5,3632.0,0.38114872]
[1762196165354,3.2078,3632.1,3632.0,0.14284872]
[1762196165948,19.919,3632.1,3632.0,0.1401]
[1762196166153,20.21034066,3632.1,3632.0,0.1401]
[1762196166449,13.32659929,3632.1,3631.0,0.1401]
[1762196166648,3.2078,3631.1,3631.0,0.1401]
[1762196166848,3.2078,3631.1,3631.0,0.14359669]
[1762196168853,0.00264148,3632.9,3632.5,0.1401]
[1762196169047,3.2078,3632.6,3632.5,0.1401]
[1762196170361,0.00264148,3632.9,3632.5,0.1401]
[1762196170561,0.00264148,3632.9,3632.6,0.49558]
[1762196170758,0.00264148,3632.9,3632.7,0.2802]
[1762196170962,0.00264148,3632.9,3632.8,0.2802]
[1762196171159,0.00264148,3632.9,3632.8,0.5185]
[1762196171354,3.2078,3633.3,3633.2,0.2383]
[1762196171554,3.39479036,3634.7,3634.2,0.1401]
[1762196171857,3.2078,3634.3,3634.2,0.1401]
[1762196172052,3.50950672,3634.3,3634.2,0.1401]
[1762196172255,3.2078,3634.3,3634.2,0.1401]
[1762196172455,3.21007034,3634.3,3634.2,0.1420547]
[1762196173059,10.08927034,3634.3,3633.6,0.1401]
[1762196173259,3.2078,3633.7,3633.6,0.1401]
[1762196173564,3.70324,3633.7,3633.6,0.1401]
[1762196174060,0.49542,3633.9,3633.6,0.66121843]
[1762196174362,0.49541,3634.0,3633.6,0.14271843]
[1762196174555,0.49539,3634.1,3633.8,0.2802]
[1762196174758,0.49541,3634.0,3633.8,0.2802]
[1762196175054,3.2078,3634.2,3633.6,0.14271843]
[1762196175259,3.2078,3634.2,3633.8,0.77562]
[1762196175560,3.2078,3634.2,3633.6,0.14271843]
[1762196175561,3.70318,3634.2,3633.9,0.77561]
[1762196175762,0.4954,3634.1,3634.0,0.2383]
[1762196176263,0.49544,3633.8,3633.7,0.2482]
[1762196176762,0.49544,3633.8,3633.7,0.5284]
[1762196176958,0.49541,3634.0,3633.7,1.02384]
[1762196177153,0.49541,3634.0,3633.9,0.2802]
[1762196178763,0.4954,3634.1,3633.9,0.5284]
[1762196179064,0.4954,3634.1,3634.0,0.2802]
[1762196179253,0.49542,3633.9,3633.8,0.2482]
[1762196179653,0.00227034,3634.3,3633.8,1.02383]
[1762196179859,0.00227034,3634.3,3634.2,0.1531]
[1762196180060,0.00227034,3634.3,3634.2,1.17687]
[1762196180262,0.49763034,3634.3,3634.2,0.6815]
[1762196182865,0.49763034,3634.3,3634.2,1.17687]
[1762196183264,0.49763034,3634.3,3634.2,0.6815]
[1762196183562,0.49763034,3634.3,3634.2,0.1531]
[1762196183767,0.49763034,3634.3,3634.2,6.27e-06]
[1762196184065,6.88147034,3634.3,3633.6,0.14271843]
[1762196184262,3.2078,3633.8,3633.6,0.14271843]
[1762196184855,3.2078,3633.8,3633.0,0.1401]
[1762196184856,17.02460583,3633.7,3633.0,0.1401]
[1762196185056,3.2078,3633.2,3633.0,0.1401]
[1762196185868,3.2078,3633.2,3633.0,0.14318616]
[1762196190564,3.2078,3633.6,3633.5,0.3921]
[1762196190766,3.2078,3633.6,3633.5,0.88756]
[1762196190964,3.2078,3633.6,3633.5,1.16776]
[1762196191160,0.00227034,3634.3,3634.0,0.1547]
[1762196191385,0.00227034,3634.3,3634.2,0.2802]
[1762196191871,0.00227034,3634.3,3634.0,0.1547]
[1762196192069,0.49538,3634.1,3634.0,0.1547]
[1762196194271,0.49538,3634.1,3634.0,0.4349]
[1762196194472,0.49538,3634.1,3634.0,0.1547]
[1762196194673,0.49538,3634.1,3634.0,0.4349]
[1762196194871,0.49538,3634.1,3634.0,0.1547]
[1762196196367,0.49538,3634.1,3634.0,0.6723]
[1762196198068,0.00227034,3634.3,3634.2,0.2374]
[1762196198267,0.00227034,3634.3,3634.2,1.01297]
[1762196198667,3.70309,3634.8,3634.7,0.2374]
[1762196198868,0.49528,3634.9,3634.8,0.2374]
[1762196199070,0.80067939,3634.9,3634.8,0.2374]
[1762196199273,0.30539939,3634.9,3634.8,0.5176]
[1762196199475,4.44586,3635.3,3635.0,0.1547]
[1762196199664,0.49525,3635.1,3635.0,0.4349]
[1762196199868,0.80084213,3635.1,3635.0,0.4349]
[1762196200263,0.80084213,3635.1,3635.0,0.1547]
[1762196202076,0.80084213,3635.1,3635.0,0.4349]
[1762196202570,0.80084213,3635.1,3635.0,1.16756]
[1762196202571,0.49525,3635.1,3635.0,1.16756]
[1762196203072,0.49525,3635.1,3635.0,0.6723]
[1762196203670,0.00352332,3635.3,3635.2,0.2374]
[1762196203974,0.49511,3636.1,3636.0,0.3921]
[1762196204169,3.2078,3636.5,3636.0,0.6723]
[1762196204476,0.49507,3636.4,3636.2,0.2802]
[1762196204776,3.2078,3636.5,3636.4,0.5059]
[1762196204977,3.70585905,3636.5,3636.4,0.5059]
[1762196206279,0.49805905,3636.5,3636.4,0.5059]
[1762196206875,0.00299905,3636.5,3636.4,1.00097]
[1762196207171,0.00299905,3636.5,3636.4,4.20877]
[1762196207378,3.70585905,3636.5,3636.4,0.5059]
[1762196207578,0.49805905,3636.5,3636.4,0.5059]
[1762196207773,0.49805905,3636.5,3636.4,1.00097]
[1762196207968,0.00299905,3636.5,3636.4,0.5059]
[1762196208174,0.49805905,3636.5,3636.4,0.5059]
[1762196208374,0.49805905,3636.5,3636.4,1.00097]
[1762196208680,0.49805905,3636.5,3636.4,0.5059]
[1762196210672,0.00299905,3636.5,3636.4,1.00097]
[1762196210874,0.49805905,3636.5,3636.4,1.00097]
[1762196211074,0.00299905,3636.5,3636.4,1.00097]
[1762196211275,0.49805905,3636.5,3636.4,0.5059]
[1762196211674,0.00299905,3636.5,3636.4,1.00097]
[1762196211877,0.49805905,3636.5,3636.4,0.5059]
[1762196212881,0.00299905,3636.5,3636.4,1.00097]
[1762196213281,0.49805905,3636.5,3636.4,0.5059]
[1762196214577,0.49805905,3636.5,3636.4,1.00097]
[1762196217181,0.00299905,3636.5,3636.4,4.20877]
[1762196217882,0.49805905,3636.5,3636.4,3.7137]
[1762196218082,0.49805905,3636.5,3636.4,4.20877]
[1762196218982,0.49805905,3636.5,3636.4,1.00097]
[1762196219884,0.49805905,3636.5,3636.4,0.5059]
[1762196220183,0.49508,3636.3,3636.2,0.00204413]
[1762196220583,7.37028,3636.3,3636.2,0.00204413]
[1762196220788,0.7999716,3636.3,3636.2,0.00204413]
[1762196221989,0.7999716,3636.3,3635.5,0.1547]
[1762196221990,6.8752,3636.2,3635.5,0.1547]
[1762196222286,3.2078,3635.6,3635.5,0.1547]
[1762196222587,3.5126916,3635.6,3635.5,0.1547]
[1762196222788,0.00299905,3636.5,3636.0,0.86102]
[1762196222789,3.2078,3636.1,3636.0,0.86102]
[1762196222984,3.21079905,3636.5,3636.0,0.1402]
[1762196223185,3.21079905,3636.5,3636.2,0.2802]
[1762196223677,3.21079905,3636.5,3636.4,0.2802]
[1762196223876,3.5161535,3636.5,3636.3,0.2802]
[1762196224083,0.30535445,3636.4,3636.2,0.2802]
[1762196224282,3.21079905,3636.5,3636.2,0.2802]
[1762196224485,0.30551712,3636.4,3636.0,0.1402]
[1762196224686,3.21079905,3636.5,3636.2,0.2802]
[1762196224890,0.30547477,3636.4,3636.1,0.2802]
[1762196225081,3.21079905,3636.5,3636.1,0.2802]
[1762196225281,0.3054201,3636.4,3636.0,0.1402]
[1762196225478,0.3054201,3636.3,3636.0,0.1402]
[1762196225690,3.21079905,3636.5,3636.0,0.1402]
[1762196225891,0.30574215,3636.4,3636.0,0.1402]
[1762196226088,0.30574215,3636.3,3636.0,0.1402]
[1762196226288,0.30606203,3636.2,3636.0,0.1402]
[1762196226485,3.21079905,3636.5,3636.0,0.1402]